[Event "*** Titled Tuesday Blitz"]
[Site "Chess.com"]
[Date "2021.03.16"]
[Round "10"]
[White "jfriedel"]
[Black "iturrizaga"]
[Result "1-0"]
[WhiteElo "2713"]
[BlackElo "2844"]
[TimeControl "180+1"]
[EndTime "11:55:59 PDT"]
[Termination "jfriedel won on time"]

1. d4 {[%clk 0:02:46.9]} 1... Nf6 {[%clk 0:02:59.5]} 2. c4 {[%clk 0:02:46.7]}
2... e6 {[%clk 0:02:59.8]} 3. Nc3 {[%clk 0:02:46.5]} 3... Bb4 {[%clk 0:02:59.7]}
4. Nf3 {[%clk 0:02:47.1]} 4... O-O {[%clk 0:02:58.6]} 5. Bg5 {[%clk 0:02:46.8]}
5... c5 {[%clk 0:02:56.8]} 6. Rc1 {[%clk 0:02:41.7]} 6... h6 {[%clk 0:02:55.7]}
7. Bh4 {[%clk 0:02:41.6]} 7... cxd4 {[%clk 0:02:54.4]} 8. Nxd4 {[%clk
0:02:41.6]} 8... Nc6 {[%clk 0:02:50]} 9. e3 {[%clk 0:02:40.8]} 9... Ne5 {[%clk
0:02:41.3]} 10. Be2 {[%clk 0:02:29.9]} 10... Ng6 {[%clk 0:02:40.5]} 11. Bg3
{[%clk 0:02:28.7]} 11... d5 {[%clk 0:02:34.1]} 12. O-O {[%clk 0:02:23.4]} 12...
dxc4 {[%clk 0:02:07.2]} 13. Ndb5 {[%clk 0:02:11.4]} 13... e5 {[%clk 0:01:56.9]}
14. Qxd8 {[%clk 0:01:42.3]} 14... Rxd8 {[%clk 0:01:57.8]} 15. Bxc4 {[%clk
0:01:42.9]} 15... a6 {[%clk 0:01:48.4]} 16. Nc7 {[%clk 0:01:40.2]} 16... Rb8
{[%clk 0:01:44.5]} 17. N7d5 {[%clk 0:01:33.7]} 17... Nxd5 {[%clk 0:01:41.8]} 18.
Nxd5 {[%clk 0:01:34.6]} 18... Bd6 {[%clk 0:01:34.9]} 19. Nb6 {[%clk 0:01:29.2]}
19... Bf5 {[%clk 0:01:32.6]} 20. Rfd1 {[%clk 0:01:24.6]} 20... Ne7 {[%clk
0:01:19.5]} 21. Be2 {[%clk 0:01:00.8]} 21... f6 {[%clk 0:01:05.3]} 22. a3 {[%clk
0:00:57.1]} 22... Be6 {[%clk 0:01:04.2]} 23. b4 {[%clk 0:00:53.6]} 23... Kf7
{[%clk 0:01:02.9]} 24. h4 {[%clk 0:00:53]} 24... Nf5 {[%clk 0:01:01.2]} 25. Nc4
{[%clk 0:00:43.6]} 25... Be7 {[%clk 0:00:56]} 26. Bh2 {[%clk 0:00:41.5]} 26...
Nxh4 {[%clk 0:00:53]} 27. f4 {[%clk 0:00:41.1]} 27... exf4 {[%clk 0:00:46.7]}
28. Bxf4 {[%clk 0:00:42]} 28... Rbc8 {[%clk 0:00:45.7]} 29. Nb6 {[%clk
0:00:41.7]} 29... Rxc1 {[%clk 0:00:45.4]} 30. Rxc1 {[%clk 0:00:42.6]} 30... g5
{[%clk 0:00:35.3]} 31. Bh2 {[%clk 0:00:40.4]} 31... Nf5 {[%clk 0:00:35.5]} 32.
Rc7 {[%clk 0:00:36.8]} 32... Nxe3 {[%clk 0:00:32.5]} 33. Rxb7 {[%clk 0:00:34]}
33... Rd2 {[%clk 0:00:32.7]} 34. Bf3 {[%clk 0:00:28.7]} 34... Bg4 {[%clk
0:00:10.4]} 35. Bc6 {[%clk 0:00:21.3]} 35... Be6 {[%clk 0:00:05.6]} 36. Bg3
{[%clk 0:00:20.6]} 36... Ng4 {[%clk 0:00:05.7]} 37. Kf1 {[%clk 0:00:19.7]} 37...
Rc2 {[%clk 0:00:03.4]} 38. Bd6 {[%clk 0:00:18.9]} 38... Ne3+ {[%clk 0:00:01.8]}
39. Kg1 {[%clk 0:00:17.7]} 39... Rxc6 {[%clk 0:00:02]} 40. Rxe7+ {[%clk
0:00:17.9]} 40... Kg6 {[%clk 0:00:02.6]} 41. Rxe6 {[%clk 0:00:18.8]} 41... Rxb6
{[%clk 0:00:03.1]} 42. Rxe3 {[%clk 0:00:16.3]} 42... Rxd6 {[%clk 0:00:03.7]} 43.
Rb3 {[%clk 0:00:16.9]} 43... Rd2 {[%clk 0:00:03.5]} 44. a4 {[%clk 0:00:16.9]}
44... h5 {[%clk 0:00:03.9]} 45. b5 {[%clk 0:00:17.4]} 45... axb5 {[%clk
0:00:04.8]} 46. axb5 {[%clk 0:00:18.3]} 46... Rd7 {[%clk 0:00:05.5]} 47. b6
{[%clk 0:00:18.8]} 47... Rb7 {[%clk 0:00:05.5]} 48. Kf2 {[%clk 0:00:19.7]} 48...
Kf5 {[%clk 0:00:05.9]} 49. Ke3 {[%clk 0:00:19.3]} 49... Kg4 {[%clk 0:00:06.3]}
50. Ke4 {[%clk 0:00:18.7]} 50... f5+ {[%clk 0:00:06.7]} 51. Kd5 {[%clk
0:00:19.2]} 51... f4 {[%clk 0:00:05.4]} 52. Kc6 {[%clk 0:00:19.4]} 52... Rb8
{[%clk 0:00:05.2]} 53. Kc7 {[%clk 0:00:19.8]} 53... Rh8 {[%clk 0:00:04.8]} 54.
b7 {[%clk 0:00:20.3]} 54... Kh4 {[%clk 0:00:04.3]} 55. b8=Q {[%clk 0:00:18.1]}
55... Rxb8 {[%clk 0:00:04.9]} 56. Kxb8 {[%clk 0:00:19]} 56... g4 {[%clk
0:00:05.7]} 57. Kc7 {[%clk 0:00:19.2]} 57... f3 {[%clk 0:00:05.5]} 58. gxf3
{[%clk 0:00:19.1]} 58... g3 {[%clk 0:00:06.2]} 59. f4 {[%clk 0:00:19.5]} 59...
Kg4 {[%clk 0:00:05.1]} 60. f5 {[%clk 0:00:18.9]} 60... h4 {[%clk 0:00:03.3]} 61.
f6 {[%clk 0:00:18.7]} 61... g2 {[%clk 0:00:04]} 62. Rb1 {[%clk 0:00:18.8]} 62...
h3 {[%clk 0:00:04.3]} 63. f7 {[%clk 0:00:19.3]} 63... h2 {[%clk 0:00:03.2]} 64.
f8=Q {[%clk 0:00:19.7]} 64... h1=Q {[%clk 0:00:03.9]} 65. Qg7+ {[%clk
0:00:18.2]} 65... Kf5 {[%clk 0:00:03.8]} 66. Qf7+ {[%clk 0:00:18.2]} 66... Ke5
{[%clk 0:00:03.9]} 67. Qe7+ {[%clk 0:00:18.4]} 67... Kf5 {[%clk 0:00:04.2]} 68.
Rb5+ {[%clk 0:00:17.6]} 68... Kf4 {[%clk 0:00:04.1]} 69. Qg5+ {[%clk 0:00:17.5]}
1-0

[Event "*** Titled Tuesday Blitz"]
[Site "Chess.com"]
[Date "2021.03.16"]
[Round "10"]
[White "CSB7"]
[Black "ChessQueen"]
[Result "1/2-1/2"]
[WhiteElo "2623"]
[BlackElo "2716"]
[TimeControl "180+1"]
[EndTime "11:56:25 PDT"]
[Termination "Game drawn by stalemate"]

1. e4 {[%clk 0:03:00.9]} 1... c6 {[%clk 0:02:59.6]} 2. Nc3 {[%clk 0:02:58.5]}
2... d5 {[%clk 0:02:59.3]} 3. Nf3 {[%clk 0:02:59.1]} 3... dxe4 {[%clk
0:02:59.6]} 4. Nxe4 {[%clk 0:02:59]} 4... Nf6 {[%clk 0:03:00.3]} 5. Qe2 {[%clk
0:02:59.4]} 5... Nxe4 {[%clk 0:03:00]} 6. Qxe4 {[%clk 0:03:00.3]} 6... Nd7
{[%clk 0:03:00.1]} 7. Bc4 {[%clk 0:03:00.7]} 7... Nf6 {[%clk 0:03:00.2]} 8. Ne5
{[%clk 0:03:00.8]} 8... e6 {[%clk 0:03:00.8]} 9. Qe2 {[%clk 0:03:01.1]} 9... b5
{[%clk 0:03:00.1]} 10. Bd3 {[%clk 0:03:00.8]} 10... Qc7 {[%clk 0:02:52.1]} 11.
b3 {[%clk 0:03:00.5]} 11... Bb7 {[%clk 0:02:49.7]} 12. Bb2 {[%clk 0:02:56.1]}
12... a6 {[%clk 0:02:45.7]} 13. O-O-O {[%clk 0:02:37.2]} 13... Bd6 {[%clk
0:02:41.4]} 14. f4 {[%clk 0:02:19.8]} 14... Nd5 {[%clk 0:02:35.6]} 15. Rhf1
{[%clk 0:01:57.2]} 15... Nb4 {[%clk 0:02:27.6]} 16. Be4 {[%clk 0:01:52.4]} 16...
Nxa2+ {[%clk 0:02:22.4]} 17. Kb1 {[%clk 0:01:52.6]} 17... Nb4 {[%clk 0:02:22.6]}
18. Qg4 {[%clk 0:01:25.3]} 18... f5 {[%clk 0:01:47.9]} 19. Qh5+ {[%clk
0:01:24.9]} 19... g6 {[%clk 0:01:47.5]} 20. Nxg6 {[%clk 0:01:18.5]} 20... Qf7
{[%clk 0:01:47.4]} 21. Bxf5 {[%clk 0:01:02.2]} 21... hxg6 {[%clk 0:00:57.9]} 22.
Qxh8+ {[%clk 0:00:46.4]} 22... Kd7 {[%clk 0:00:58]} 23. Bxe6+ {[%clk 0:00:36.3]}
23... Qxe6 {[%clk 0:00:56.4]} 24. Qg7+ {[%clk 0:00:30.4]} 24... Qe7 {[%clk
0:00:44.6]} 25. Qxg6 {[%clk 0:00:30]} 25... Kc7 {[%clk 0:00:40.5]} 26. Rfe1
{[%clk 0:00:26.3]} 26... Qd7 {[%clk 0:00:40.1]} 27. Be5 {[%clk 0:00:21.8]} 27...
Bxe5 {[%clk 0:00:36.9]} 28. fxe5 {[%clk 0:00:21.5]} 28... Qe7 {[%clk 0:00:24.4]}
29. e6 {[%clk 0:00:17.1]} 29... Re8 {[%clk 0:00:21.5]} 30. Qf7 {[%clk
0:00:15.5]} 30... Nd5 {[%clk 0:00:19]} 31. g4 {[%clk 0:00:13.8]} 31... Kd6
{[%clk 0:00:17.5]} 32. g5 {[%clk 0:00:08.8]} 32... Rf8 {[%clk 0:00:17.6]} 33.
Qxe7+ {[%clk 0:00:07]} 33... Kxe7 {[%clk 0:00:18.5]} 34. h4 {[%clk 0:00:06.9]}
34... Nf4 {[%clk 0:00:17.4]} 35. Rf1 {[%clk 0:00:05.6]} 35... c5 {[%clk
0:00:16.4]} 36. Rde1 {[%clk 0:00:05.3]} 36... Bd5 {[%clk 0:00:12.9]} 37. Rf2
{[%clk 0:00:04.4]} 37... Bxe6 {[%clk 0:00:11.3]} 38. Re4 {[%clk 0:00:03.9]}
38... Ng6 {[%clk 0:00:09.5]} 39. Rxf8 {[%clk 0:00:03]} 39... Nxf8 {[%clk
0:00:10.4]} 40. h5 {[%clk 0:00:03.7]} 40... Kf7 {[%clk 0:00:11]} 41. g6+ {[%clk
0:00:03]} 41... Kg7 {[%clk 0:00:10.5]} 42. Re5 {[%clk 0:00:03.5]} 42... c4
{[%clk 0:00:09.9]} 43. bxc4 {[%clk 0:00:04.4]} 43... bxc4 {[%clk 0:00:10]} 44.
Kb2 {[%clk 0:00:03.6]} 44... Bg4 {[%clk 0:00:06.6]} 45. Ra5 {[%clk 0:00:03.2]}
45... Nd7 {[%clk 0:00:05.2]} 46. Rxa6 {[%clk 0:00:03]} 46... Bxh5 {[%clk
0:00:05.5]} 47. Ra7 {[%clk 0:00:03.5]} 47... Bg4 {[%clk 0:00:06]} 48. Kc3 {[%clk
0:00:03.9]} 48... Kxg6 {[%clk 0:00:06.5]} 49. Kxc4 {[%clk 0:00:04.4]} 49... Kf6
{[%clk 0:00:07.1]} 50. d4 {[%clk 0:00:04.5]} 50... Ke6 {[%clk 0:00:07.5]} 51.
Ra6+ {[%clk 0:00:04.1]} 51... Ke7 {[%clk 0:00:07.3]} 52. Rh6 {[%clk 0:00:04.5]}
52... Be2+ {[%clk 0:00:07.2]} 53. Kc3 {[%clk 0:00:02.8]} 53... Nf6 {[%clk
0:00:08.1]} 54. Kd2 {[%clk 0:00:02.8]} 54... Bc4 {[%clk 0:00:08.7]} 55. Rh1
{[%clk 0:00:01.9]} 55... Kd6 {[%clk 0:00:08.7]} 56. Ra1 {[%clk 0:00:02.8]} 56...
Ne4+ {[%clk 0:00:07.9]} 57. Ke3 {[%clk 0:00:02.6]} 57... Nc3 {[%clk 0:00:08.8]}
58. Ra5 {[%clk 0:00:02.2]} 58... Nd5+ {[%clk 0:00:08]} 59. Kd2 {[%clk
0:00:02.3]} 59... Bf1 {[%clk 0:00:08.1]} 60. c3 {[%clk 0:00:02.4]} 60... Nb6
{[%clk 0:00:08]} 61. Ra1 {[%clk 0:00:02.8]} 61... Nc4+ {[%clk 0:00:07.4]} 62.
Kc2 {[%clk 0:00:03.3]} 62... Be2 {[%clk 0:00:08]} 63. Ra6+ {[%clk 0:00:02.1]}
63... Kd5 {[%clk 0:00:08.1]} 64. Ra7 {[%clk 0:00:03]} 64... Nd6 {[%clk
0:00:07.9]} 65. Rg7 {[%clk 0:00:02.3]} 65... Bb5 {[%clk 0:00:07.6]} 66. Kd2
{[%clk 0:00:02.5]} 66... Ne4+ {[%clk 0:00:07.2]} 67. Kc2 {[%clk 0:00:03.1]}
67... Nd6 {[%clk 0:00:06.3]} 68. Kb2 {[%clk 0:00:03.2]} 68... Kc6 {[%clk
0:00:06.4]} 69. Kb3 {[%clk 0:00:03]} 69... Bc4+ {[%clk 0:00:05.9]} 70. Kb4
{[%clk 0:00:02.5]} 70... Bd5 {[%clk 0:00:06.1]} 71. Rg6 {[%clk 0:00:02.3]} 71...
Be4 {[%clk 0:00:04.5]} 72. Rh6 {[%clk 0:00:01.8]} 72... Bd3 {[%clk 0:00:04.4]}
73. c4 {[%clk 0:00:02.1]} 73... Bxc4 {[%clk 0:00:03.9]} 74. Rxd6+ {[%clk
0:00:02.6]} 74... Kxd6 {[%clk 0:00:04.4]} 75. Kxc4 {[%clk 0:00:03.5]} 75... Kc6
{[%clk 0:00:05]} 76. d5+ {[%clk 0:00:04.4]} 76... Kd6 {[%clk 0:00:05.6]} 77. Kd4
{[%clk 0:00:05.3]} 77... Kd7 {[%clk 0:00:06.1]} 78. Ke5 {[%clk 0:00:06.2]} 78...
Ke7 {[%clk 0:00:06.6]} 79. d6+ {[%clk 0:00:07.1]} 79... Kd7 {[%clk 0:00:07.2]}
80. Kd5 {[%clk 0:00:08]} 80... Kd8 {[%clk 0:00:07.7]} 81. Ke6 {[%clk 0:00:08.5]}
81... Ke8 {[%clk 0:00:08.2]} 82. d7+ {[%clk 0:00:09.4]} 82... Kd8 {[%clk
0:00:08.7]} 83. Kd6 {[%clk 0:00:10.3]} 1/2-1/2

[Event "*** Titled Tuesday Blitz"]
[Site "Chess.com"]
[Date "2021.03.16"]
[Round "10"]
[White "tylityli"]
[Black "AwareIdea"]
[Result "1/2-1/2"]
[WhiteElo "2295"]
[BlackElo "2410"]
[TimeControl "180+1"]
[EndTime "11:57:23 PDT"]
[Termination "Game drawn by repetition"]

1. d4 {[%clk 0:03:00.9]} 1... Nf6 {[%clk 0:02:59.4]} 2. c4 {[%clk 0:03:00.3]}
2... g6 {[%clk 0:02:59.3]} 3. Nc3 {[%clk 0:02:58.5]} 3... d5 {[%clk 0:02:59.4]}
4. cxd5 {[%clk 0:02:57.4]} 4... Nxd5 {[%clk 0:03:00.3]} 5. Bd2 {[%clk 0:02:58]}
5... Bg7 {[%clk 0:02:59.7]} 6. e4 {[%clk 0:02:57.7]} 6... Nxc3 {[%clk
0:02:59.9]} 7. Bxc3 {[%clk 0:02:57.8]} 7... O-O {[%clk 0:03:00.6]} 8. Be2 {[%clk
0:02:57]} 8... c5 {[%clk 0:03:00.7]} 9. d5 {[%clk 0:02:56.5]} 9... Qb6 {[%clk
0:02:53.5]} 10. Nf3 {[%clk 0:02:49.7]} 10... Bxc3+ {[%clk 0:02:47.7]} 11. bxc3
{[%clk 0:02:49.3]} 11... Qb2 {[%clk 0:02:48.6]} 12. Qc1 {[%clk 0:02:45.4]} 12...
Qxc1+ {[%clk 0:02:44.1]} 13. Rxc1 {[%clk 0:02:46.3]} 13... Bg4 {[%clk
0:02:44.7]} 14. Ne5 {[%clk 0:02:41.7]} 14... Nd7 {[%clk 0:02:42.8]} 15. Nxd7
{[%clk 0:02:37.8]} 15... Bxd7 {[%clk 0:02:43.7]} 16. e5 {[%clk 0:02:37.6]} 16...
b6 {[%clk 0:02:40.2]} 17. O-O {[%clk 0:02:31.9]} 17... Rad8 {[%clk 0:02:38.4]}
18. c4 {[%clk 0:02:29.2]} 18... Ba4 {[%clk 0:02:36]} 19. Bd1 {[%clk 0:02:25.2]}
19... Bd7 {[%clk 0:02:31.8]} 20. f4 {[%clk 0:02:21.1]} 20... e6 {[%clk
0:02:31.1]} 21. d6 {[%clk 0:02:19.7]} 21... Bc6 {[%clk 0:02:30.4]} 22. Bf3
{[%clk 0:02:18.9]} 22... Rc8 {[%clk 0:02:26.9]} 23. Bxc6 {[%clk 0:02:12.7]}
23... Rxc6 {[%clk 0:02:27.8]} 24. Rfd1 {[%clk 0:02:05.2]} 24... Rb8 {[%clk
0:02:25.7]} 25. a4 {[%clk 0:02:02.3]} 25... Kf8 {[%clk 0:02:23.2]} 26. Kf2
{[%clk 0:02:02.1]} 26... Ke8 {[%clk 0:02:23.2]} 27. Ke3 {[%clk 0:02:02.3]} 27...
Kd7 {[%clk 0:02:23.5]} 28. g4 {[%clk 0:01:57.5]} 28... Rcc8 {[%clk 0:02:23.2]}
29. Ke4 {[%clk 0:01:53.9]} 29... Rg8 {[%clk 0:02:20.8]} 30. Rg1 {[%clk
0:01:53.1]} 30... Rbf8 {[%clk 0:02:07.1]} 31. a5 {[%clk 0:01:35.7]} 31... Kc6
{[%clk 0:01:35.3]} 32. axb6 {[%clk 0:01:28.6]} 32... axb6 {[%clk 0:01:36.2]} 33.
Ra1 {[%clk 0:01:28.6]} 33... Ra8 {[%clk 0:01:35.9]} 34. Rgb1 {[%clk 0:01:26.9]}
34... Rgf8 {[%clk 0:01:31.4]} 35. h4 {[%clk 0:01:08]} 35... h6 {[%clk
0:01:26.4]} 36. f5 {[%clk 0:01:06.3]} 36... gxf5+ {[%clk 0:01:23]} 37. gxf5
{[%clk 0:01:06]} 37... Rg8 {[%clk 0:01:23.9]} 38. Rxa8 {[%clk 0:01:03]} 38...
Rxa8 {[%clk 0:01:21.8]} 39. fxe6 {[%clk 0:01:03.1]} 39... fxe6 {[%clk
0:01:22.7]} 40. Rg1 {[%clk 0:01:02.6]} 40... Ra4 {[%clk 0:01:21]} 41. Kd3 {[%clk
0:00:57.9]} 41... Ra3+ {[%clk 0:01:20.9]} 42. Ke4 {[%clk 0:00:57.8]} 42... Rc3
{[%clk 0:01:19.9]} 43. Rg6 {[%clk 0:00:45.6]} 43... Rxc4+ {[%clk 0:01:19.8]} 44.
Ke3 {[%clk 0:00:44.9]} 44... Rd4 {[%clk 0:00:52.3]} 45. Rxe6 {[%clk 0:00:42.1]}
45... Rxh4 {[%clk 0:00:50.2]} 46. Re7 {[%clk 0:00:38.2]} 46... Rd4 {[%clk
0:00:49.1]} 47. Rh7 {[%clk 0:00:13.2]} 47... b5 {[%clk 0:00:33.6]} 48. Rxh6
{[%clk 0:00:11.4]} 48... b4 {[%clk 0:00:33.5]} 49. Rh7 {[%clk 0:00:07.8]} 49...
b3 {[%clk 0:00:33.9]} 50. Rc7+ {[%clk 0:00:07.4]} 50... Kd5 {[%clk 0:00:32.6]}
51. d7 {[%clk 0:00:06.8]} 51... Ke6 {[%clk 0:00:29.9]} 52. Rxc5 {[%clk
0:00:06.2]} 52... Rxd7 {[%clk 0:00:21.5]} 53. Rb5 {[%clk 0:00:06.3]} 53... Rh7
{[%clk 0:00:19.7]} 54. Kd4 {[%clk 0:00:04.9]} 54... Rh3 {[%clk 0:00:15.8]} 55.
Rb6+ {[%clk 0:00:04.8]} 55... Ke7 {[%clk 0:00:15.1]} 56. e6 {[%clk 0:00:05]}
56... Rg3 {[%clk 0:00:11.8]} 57. Kc4 {[%clk 0:00:05]} 57... b2 {[%clk 0:00:07]}
58. Rxb2 {[%clk 0:00:04.8]} 58... Kxe6 {[%clk 0:00:07.5]} 59. Re2+ {[%clk
0:00:05.5]} 59... Kd6 {[%clk 0:00:07.7]} 60. Rd2+ {[%clk 0:00:06.4]} 60... Kc6
{[%clk 0:00:08.2]} 61. Rd3 {[%clk 0:00:06.4]} 61... Rg4+ {[%clk 0:00:08.2]} 62.
Kc3 {[%clk 0:00:06.5]} 62... Rg1 {[%clk 0:00:09.1]} 63. Rd4 {[%clk 0:00:05.7]}
63... Kc5 {[%clk 0:00:09.3]} 64. Rd3 {[%clk 0:00:05]} 64... Rg2 {[%clk
0:00:07.5]} 65. Rh3 {[%clk 0:00:04.1]} 65... Ra2 {[%clk 0:00:07.3]} 66. Rh5+
{[%clk 0:00:04.1]} 66... Kd6 {[%clk 0:00:07.5]} 67. Rh6+ {[%clk 0:00:04.4]}
67... Ke5 {[%clk 0:00:08]} 68. Rh5+ {[%clk 0:00:04.4]} 68... Ke4 {[%clk
0:00:08.6]} 69. Rh4+ {[%clk 0:00:04.5]} 69... Ke3 {[%clk 0:00:09.2]} 70. Rh3+
{[%clk 0:00:04.8]} 70... Kf4 {[%clk 0:00:09.5]} 71. Rh4+ {[%clk 0:00:05]} 71...
Kg5 {[%clk 0:00:10]} 72. Rb4 {[%clk 0:00:05.9]} 72... Rh2 {[%clk 0:00:09.1]} 73.
Rb2 {[%clk 0:00:06.4]} 73... Rh1 {[%clk 0:00:05.8]} 74. Kb4 {[%clk 0:00:06.9]}
74... Kf5 {[%clk 0:00:05.4]} 75. Kb3 {[%clk 0:00:07]} 75... Ke4 {[%clk
0:00:05.7]} 76. Re2+ {[%clk 0:00:07.1]} 76... Kd3 {[%clk 0:00:06]} 77. Rg2
{[%clk 0:00:06.6]} 77... Rh3 {[%clk 0:00:05.6]} 78. Ra2 {[%clk 0:00:05.2]} 78...
Kd4+ {[%clk 0:00:02.8]} 79. Kb4 {[%clk 0:00:05.4]} 79... Rh1 {[%clk 0:00:02.7]}
80. Rd2+ {[%clk 0:00:05.4]} 80... Ke3 {[%clk 0:00:03.2]} 81. Rd8 {[%clk
0:00:05.4]} 81... Ke4 {[%clk 0:00:03.5]} 82. Kc5 {[%clk 0:00:05.5]} 82... Rc1+
{[%clk 0:00:03]} 83. Kb4 {[%clk 0:00:05.6]} 83... Rb1+ {[%clk 0:00:03.2]} 84.
Kc5 {[%clk 0:00:05.8]} 84... Rc1+ {[%clk 0:00:03.4]} 85. Kb4 {[%clk 0:00:06.1]}
85... Ra1 {[%clk 0:00:02.2]} 86. Kc5 {[%clk 0:00:06]} 86... Kf5 {[%clk
0:00:02.6]} 87. Kc4 {[%clk 0:00:05.9]} 87... Ke6 {[%clk 0:00:03]} 88. Kb3 {[%clk
0:00:05.9]} 88... Ke7 {[%clk 0:00:03]} 89. Rd2 {[%clk 0:00:06.3]} 89... Ra7
{[%clk 0:00:03.6]} 90. Ra2 {[%clk 0:00:06.2]} 90... Rb7+ {[%clk 0:00:04.1]} 91.
Kc3 {[%clk 0:00:06.6]} 91... Kd6 {[%clk 0:00:05]} 92. Kd4 {[%clk 0:00:06.5]}
92... Rb4+ {[%clk 0:00:05.1]} 93. Kc3 {[%clk 0:00:06.8]} 93... Rh4 {[%clk
0:00:06]} 94. Rd2+ {[%clk 0:00:07.3]} 94... Kc5 {[%clk 0:00:06.4]} 95. Rd3
{[%clk 0:00:08.1]} 95... Ra4 {[%clk 0:00:06.1]} 96. Kb3 {[%clk 0:00:07.8]} 96...
Rb4+ {[%clk 0:00:06.7]} 97. Kc3 {[%clk 0:00:08.1]} 97... Rh4 {[%clk 0:00:07.2]}
98. Kb3 {[%clk 0:00:08.2]} 98... Rb4+ {[%clk 0:00:06.1]} 99. Kc3 {[%clk
0:00:08.5]} 99... Rc4+ {[%clk 0:00:06.4]} 100. Kb3 {[%clk 0:00:08.8]} 100...
Rb4+ {[%clk 0:00:06.9]} 1/2-1/2

[Event "*** Titled Tuesday Blitz"]
[Site "Chess.com"]
[Date "2021.03.16"]
[Round "11"]
[White "eCztery"]
[Black "Chigorinetz"]
[Result "0-1"]
[WhiteElo "2411"]
[BlackElo "2505"]
[TimeControl "180+1"]
[EndTime "12:01:20 PDT"]
[Termination "Chigorinetz won by checkmate"]

1. e4 {[%clk 0:02:57.6]} 1... c5 {[%clk 0:02:58.9]} 2. b3 {[%clk 0:02:54.6]}
2... d5 {[%clk 0:02:55.8]} 3. exd5 {[%clk 0:02:41.7]} 3... Nf6 {[%clk
0:02:55.4]} 4. c4 {[%clk 0:02:39.2]} 4... e6 {[%clk 0:02:53.3]} 5. dxe6 {[%clk
0:02:32.8]} 5... Bxe6 {[%clk 0:02:52.9]} 6. Nf3 {[%clk 0:02:31.8]} 6... Nc6
{[%clk 0:02:52.8]} 7. Bb2 {[%clk 0:02:29]} 7... Bd6 {[%clk 0:02:46.5]} 8. d4
{[%clk 0:02:18.4]} 8... cxd4 {[%clk 0:02:43.4]} 9. Nxd4 {[%clk 0:02:19.3]} 9...
Bb4+ {[%clk 0:02:36]} 10. Ke2 {[%clk 0:02:10.4]} 10... Qe7 {[%clk 0:02:22.1]}
11. f3 {[%clk 0:01:41.7]} 11... Ng4 {[%clk 0:02:04.1]} 12. Nxc6 {[%clk
0:00:56.8]} 12... Bxc4# {[%clk 0:01:59.9]} 0-1

[Event "*** Titled Tuesday Blitz"]
[Site "Chess.com"]
[Date "2021.03.16"]
[Round "11"]
[White "Playgood28"]
[Black "campomania3"]
[Result "0-1"]
[WhiteElo "2254"]
[BlackElo "2194"]
[TimeControl "180+1"]
[EndTime "12:02:06 PDT"]
[Termination "campomania3 won by resignation"]

1. d4 {[%clk 0:03:00.9]} 1... d5 {[%clk 0:02:59.4]} 2. c4 {[%clk 0:03:00.7]}
2... c6 {[%clk 0:02:59.1]} 3. Nd2 {[%clk 0:03:00]} 3... Nf6 {[%clk 0:02:53]} 4.
Ngf3 {[%clk 0:02:59.6]} 4... g6 {[%clk 0:02:52.6]} 5. e3 {[%clk 0:02:58.2]} 5...
Bg7 {[%clk 0:02:52.6]} 6. Bd3 {[%clk 0:02:56.1]} 6... O-O {[%clk 0:02:52.5]} 7.
b3 {[%clk 0:02:54.1]} 7... b6 {[%clk 0:02:52.9]} 8. Bb2 {[%clk 0:02:53.6]} 8...
Bb7 {[%clk 0:02:53.4]} 9. O-O {[%clk 0:02:52.6]} 9... Nbd7 {[%clk 0:02:53.2]}
10. Qe2 {[%clk 0:02:46.6]} 10... Re8 {[%clk 0:02:52.3]} 11. Rfd1 {[%clk
0:02:37.2]} 11... c5 {[%clk 0:02:31.2]} 12. Rac1 {[%clk 0:02:27.3]} 12... cxd4
{[%clk 0:02:27.8]} 13. exd4 {[%clk 0:02:26.7]} 13... dxc4 {[%clk 0:02:21.3]} 14.
bxc4 {[%clk 0:02:24.7]} 14... Rc8 {[%clk 0:02:19.1]} 15. h3 {[%clk 0:02:12]}
15... Qc7 {[%clk 0:02:17.8]} 16. Ne5 {[%clk 0:01:58]} 16... Nxe5 {[%clk
0:02:13.1]} 17. dxe5 {[%clk 0:01:57.8]} 17... Nh5 {[%clk 0:02:03.1]} 18. Ne4
{[%clk 0:01:44.5]} 18... Nf4 {[%clk 0:01:26]} 19. Qe3 {[%clk 0:01:35.3]} 19...
Nxd3 {[%clk 0:01:25.6]} 20. Rxd3 {[%clk 0:01:31.7]} 20... Bxe5 {[%clk
0:01:25.5]} 21. Ba3 {[%clk 0:01:16.3]} 21... Bf4 {[%clk 0:01:19.6]} 0-1

[Event "*** Titled Tuesday Blitz"]
[Site "Chess.com"]
[Date "2021.03.16"]
[Round "11"]
[White "VladimirBugayev"]
[Black "SaqoChess_Twitch"]
[Result "0-1"]
[WhiteElo "2291"]
[BlackElo "2495"]
[TimeControl "180+1"]
[EndTime "12:02:11 PDT"]
[Termination "SaqoChess_Twitch won by resignation"]

1. e4 {[%clk 0:02:01.3]} 1... e5 {[%clk 0:02:58.8]} 2. Nf3 {[%clk 0:02:00.8]}
2... Nc6 {[%clk 0:02:59.7]} 3. d4 {[%clk 0:02:01.1]} 3... exd4 {[%clk
0:02:56.7]} 4. Nxd4 {[%clk 0:02:01.7]} 4... Nxd4 {[%clk 0:02:57.6]} 5. Qxd4
{[%clk 0:02:01.3]} 5... Nf6 {[%clk 0:02:57.4]} 6. e5 {[%clk 0:02:01.4]} 6... c5
{[%clk 0:02:54.1]} 7. Qf4 {[%clk 0:01:53.8]} 7... Nd5 {[%clk 0:02:53.6]} 8. Qf3
{[%clk 0:01:53.4]} 8... Nc7 {[%clk 0:02:49.9]} 9. Nc3 {[%clk 0:01:51.8]} 9...
Be7 {[%clk 0:02:49]} 10. Bf4 {[%clk 0:01:51.4]} 10... O-O {[%clk 0:02:49.2]} 11.
O-O-O {[%clk 0:01:52]} 11... Ne6 {[%clk 0:02:47.7]} 12. Be3 {[%clk 0:01:49.1]}
12... Bg5 {[%clk 0:02:47.3]} 13. Nd5 {[%clk 0:01:47.5]} 13... Bxe3+ {[%clk
0:02:47.2]} 14. Qxe3 {[%clk 0:01:46.4]} 14... Qg5 {[%clk 0:02:47.1]} 15. f4
{[%clk 0:01:45.5]} 15... Qh6 {[%clk 0:02:42.1]} 16. g4 {[%clk 0:01:44.3]} 16...
b6 {[%clk 0:02:40.8]} 17. g5 {[%clk 0:01:43.8]} 17... Qh4 {[%clk 0:02:40.2]} 18.
Be2 {[%clk 0:01:37.4]} 18... Bb7 {[%clk 0:02:39.9]} 19. Ne7+ {[%clk 0:01:36.6]}
19... Kh8 {[%clk 0:02:39.7]} 20. Rhf1 {[%clk 0:01:26.6]} 20... Nd4 {[%clk
0:02:39.6]} 21. Nf5 {[%clk 0:01:21.6]} 21... Nxf5 {[%clk 0:02:39.2]} 22. Qd3
{[%clk 0:01:14.3]} 22... Nd4 {[%clk 0:02:35.2]} 23. c3 {[%clk 0:01:11.6]} 23...
Nxe2+ {[%clk 0:02:32.7]} 24. Qxe2 {[%clk 0:01:12.1]} 24... Rad8 {[%clk
0:02:32.1]} 25. Rd6 {[%clk 0:01:10.5]} 25... Bc6 {[%clk 0:02:28.8]} 26. Qd2
{[%clk 0:01:05.4]} 26... Rde8 {[%clk 0:02:26.3]} 27. Re1 {[%clk 0:01:03]} 27...
f6 {[%clk 0:02:24.3]} 28. gxf6 {[%clk 0:01:00.1]} 28... gxf6 {[%clk 0:02:22.6]}
29. Rg1 {[%clk 0:00:59.3]} 29... fxe5 {[%clk 0:02:17.1]} 30. Rxd7 {[%clk
0:00:53.3]} 30... Bxd7 {[%clk 0:02:12.7]} 31. Qxd7 {[%clk 0:00:52.8]} 31...
Qxf4+ {[%clk 0:02:13.3]} 32. Kb1 {[%clk 0:00:48.1]} 32... Qf5+ {[%clk
0:02:13.4]} 0-1